[Event "Romanian Rapid Open 2022"]
[Site "Sebes"]
[Date "2022.12.02"]
[Round "2.16"]
[White "Nagy-Elek, Tamas"]
[Black "Filip, Lucian-Ioan"]
[Result "0-1"]
[ECO "A17"]
[WhiteElo "1976"]
[BlackElo "2370"]
[Annotator "TA"]
[PlyCount "112"]
[EventDate "2022.12.02"]
[EventType "rapid"]
[EventCountry "ROU"]
[SourceTitle "playchess.com"]
[Source "ChessBase"]
[SourceQuality "1"]
[TimeControl "600+5"]

{[%evp 19,112,10,36,31,28,21,30,21,59,21,37,0,0,0,0,0,0,-15,14,0,0,0,0,-106,-98,-100,31,-25,112,107,112,108,125,112,100,90,164,113,122,120,103,115,113,109,130,0,0,-30,0,0,0,0,85,94,84,101,103,108,93,0,0,-12,0,-12,0,0,52,56,66,29,66,-35,-35,-35,-35,-35,-35,-101,-101,-246,-147,-145,-172,-511,-345,-1077,-1052,-1083,-1033,-2712,-2614,-29990,-29991,-29992,-29993]} 1. Nf3 {[%emt 0:00:03]} Nf6 {[%emt 0:00:03]} 2. c4 {[%emt 0:00:02]} c5 {[%emt 0:00:34]} 3. Nc3 {[%emt 0:00:05]} e6 {[%emt 0:00:03]} 4. g3 {[%emt 0:00:24]} b6 {[%emt 0:00:03]} 5. Bg2 {[%emt 0:00:08]} Bb7 {[%emt 0:00:01]} 6. O-O {[%emt 0:00:08]} a6 {[%emt 0:00:24]} 7. d3 {[%emt 0:00:26]} Be7 {[%emt 0:00:09]} 8. e4 {[%emt 0:00:19]} d6 {[%emt 0:00:03]} 9. a3 {[%emt 0:00:12]} O-O {[%emt 0:00:08]} 10. Rb1 {[%emt 0:00:35]} Nbd7 {[%emt 0:01:47]} 11. b4 {[%emt 0:02:21] A17: English Opening: 1...Nf6 with ...Bb4.} Qc7 {[%emt 0:00:02] [#]} 12. Bd2 $146 {[%emt 0:00:21]} ({Predecessor:} 12. Bf4 Ne5 13. b5 a5 14. Ne1 Rad8 15. Nc2 Ng6 16. Bg5 h6 17. Bd2 d5 18. Qe2 dxc4 19. dxc4 {0-1 (42) Solovchuk,A (2319)-Fier,A (2569) Chess.com INT 2021}) 12... Rfd8 {[%emt 0:00:23]} 13. Qe2 {[%emt 0:00:12] White has an edge.} (13. Ne1 {with more complications.} d5 14. bxc5 dxe4 15. cxb6 Qc8 16. Nxe4 Nxe4 17. Bxe4 Bxe4 18. dxe4 Rb8 19. Be3) 13... Rab8 {[%emt 0:00:25]} 14. Rfc1 {[%emt 0:00:10]} Re8 {[%emt 0:01:16]} 15. d4 {[%emt 0:01:51]} cxd4 {[%emt 0:00:06]} 16. Nxd4 {[%emt 0:00:03][%cal Oc3d5]} Rbc8 {[%emt 0:00:10]} 17. Nd1 {[%emt 0:00:16]} Qb8 {[%emt 0:00:22]} 18. Nb2 {[%emt 0:00:36]} Qa8 {[%emt 0:01:04][%cal Rf6e4]} 19. Re1 {[%emt 0:00:08]} Bf8 {[%emt 0:00:09]} 20. Rbc1 {[%emt 0:00:49]} g6 {[%emt 0:00:14]} 21. Nd3 {[%emt 0:00:28]} (21. Nb3 $11) 21... Bg7 $1 $17 {[%emt 0:00:11]} 22. Nb3 {[%emt 0:00:10] [#]} h6 {[%emt 0:02:52]} (22... Nxe4 $1 $17 {Hoping for ...f5.} 23. Bxe4 d5) 23. f4 {[%emt 0:00:53] [#]} (23. f3 $14) 23... d5 {[%emt 0:00:46]} (23... Nxe4 $1 $11 24. Bxe4 d5) 24. cxd5 $16 {[%emt 0:00:46]} Rxc1 {[%emt 0:00:02]} 25. Rxc1 {[%emt 0:00:07]} ({Resist} 25. Nbxc1 exd5 26. e5 Ne4 $14) 25... exd5 {[%emt 0:00:01][%cal Rf6e4]} 26. e5 {[%emt 0:00:04]} Ne4 {[%emt 0:00:00]} 27. Nf2 {[%emt 0:00:19]} Nf8 {[%emt 0:00:41]} (27... Nd6 $16) 28. Nxe4 (28. Be3 $18) 28... dxe4 {[%emt 0:00:01]} 29. Be3 {[%emt 0:00:10]} Bd5 {[%emt 0:00:06]} 30. Nd2 {[%emt 0:00:10][%cal Bb3d2,Bd2f1,Bf1e3][%mdl 32]} b5 {[%emt 0:00:07]} 31. Bf2 {[%emt 0:00:12][%cal Rd2e4]} f5 {[%emt 0:00:03] [#]} 32. Bc5 {[%emt 0:00:08]} (32. exf6 $1 $16 Bxf6 33. Qe3) 32... Ne6 {[%emt 0:00:04]} 33. Nf1 {[%emt 0:00:04]} Bc4 {[%emt 0:00:16]} 34. Qf2 {[%emt 0:00:06]} ({Of course not} 34. Rxc4 bxc4 35. Qxc4 Qc6 $15) 34... Nxc5 {[%emt 0:00:09]} 35. Qxc5 {[%emt 0:00:04]} Qd5 {[%emt 0:00:02]} (35... Bf8 $11 36. Qb6 Re6) 36. Qxd5+ Bxd5 37. Ne3 {[%emt 0:00:06]} Bf7 {[%emt 0:00:08]} 38. Rc6 {[%emt 0:00:05]} Re6 {[%emt 0:00:10]} 39. Rxe6 {[%emt 0:00:05]} ({Better is} 39. Rc7 $16) 39... Bxe6 {[%emt 0:00:01][%mdl 4096] Endgame KBB-KBN} 40. Kf2 {[%emt 0:00:02]} Kf7 {[%emt 0:00:04]} 41. Ke2 {[%emt 0:00:09]} g5 {[%emt 0:00:04]} 42. Bh3 {[%emt 0:00:07]} gxf4 {[%emt 0:00:21]} (42... g4 $11 43. Bf1 Bf8) 43. gxf4 $14 {[%emt 0:00:02]} Kg6 {[%emt 0:00:00]} 44. Kf2 {[%emt 0:00:09]} Bf8 $1 {[%emt 0:00:00]} 45. Bf1 {[%emt 0:00:06]} (45. Nc2 $1 $14) 45... Be7 $15 {[%emt 0:00:00]} 46. Be2 {[%emt 0:00:06]} Bh4+ {[%emt 0:00:04]} 47. Kf1 $1 {[%emt 0:00:04]} Bd8 {[%emt 0:00:01]} 48. Kf2 {[%emt 0:00:01]} ({White should try} 48. Ke1 $15) 48... Bb6 $17 {[%emt 0:00:00]} 49. Bf1 {[%emt 0:00:09] [#] This costs White the game.} (49. Bd1 $17) 49... Bd4 {[%emt 0:00:13]} (49... Kh5 $1 $19 50. Ke2 Kh4) 50. Ke2 {[%emt 0:00:04]} Bb2 {[%emt 0:00:03] Black is more active.} 51. Nc2 {[%emt 0:00:06]} (51. Kd2 {is tougher.}) 51... Bc1 {[%emt 0:00:04]} 52. a4 $2 {[%emt 0:00:07]} (52. Ne3) 52... bxa4 $19 {[%emt 0:00:04][%cal Bb5a4,Ba4a3,Ba3a2][%mdl 32]} 53. Kd1 {[%emt 0:00:01]} Bxf4 {[%emt 0:00:03] Threatens to win with ...Bb3.} 54. Bxa6 {[%emt 0:00:01]} Bb3 {[%emt 0:00:04][%cal Oa4a3] And now ...a3! would win. A strong pair of Bishops.} 55. b5 {[%emt 0:00:09]} a3 {[%emt 0:00:03]} 56. b6 {[%emt 0:00:03]} a2 {[%emt 0:00:01] Weighted Error Value: White=0.64/Black=0.23 (precise)} 0-1

[Event "Romanian Rapid Open 2022"]
[Site "Sebes"]
[Date "2022.12.02"]
[Round "2.17"]
[White "Secheres, Adrian-Simion"]
[Black "Tudor, Henry Edward"]
[Result "1-0"]
[ECO "E16"]
[WhiteElo "2365"]
[BlackElo "1943"]
[Annotator "TA"]
[PlyCount "82"]
[EventDate "2022.12.02"]
[EventType "rapid"]
[EventCountry "ROU"]
[SourceTitle "playchess.com"]
[Source "ChessBase"]
[SourceQuality "1"]
[TimeControl "600+5"]

{[%evp 14,82,19,27,54,46,47,44,49,42,45,36,41,0,42,29,71,14,18,30,39,53,121,67,77,46,107,86,80,87,92,65,93,71,138,71,62,66,72,72,56,44,37,0,44,39,112,42,52,41,51,46,39,37,144,-10,-9,-3,342,342,318,86,93,91,93,86,102,106,175,109,115]} 1. d4 {[%emt 0:00:03]} Nf6 {[%emt 0:00:04]} 2. c4 {[%emt 0:00:04]} e6 {[%emt 0:00:05]} 3. Nf3 {[%emt 0:00:05]} Bb4+ {[%emt 0:00:06]} 4. Bd2 {[%emt 0:00:03]} a5 {[%emt 0:00:03]} 5. g3 {[%emt 0:00:07]} b6 {[%emt 0:00:09]} 6. Bg2 {[%emt 0:00:07]} Bb7 {[%emt 0:00:06]} 7. O-O {[%emt 0:00:13]} O-O {[%emt 0:00:32]} 8. Bf4 {[%emt 0:00:06]} Re8 {[%emt 0:01:12] E16: Queen's Indian: 4 g3 Bb7 5 Bg2 Bb4+.} 9. a3 {[%emt 0:00:34]} (9. c5 $5 {[%cal Ra2a3]}) 9... Bf8 {[%emt 0:00:02]} 10. Nc3 {[%emt 0:00:02]} d6 {[%emt 0:00:08] White is slightly better.} 11. Qc2 {[%emt 0:01:16] Inhibits Ne4.} Nbd7 {[%emt 0:00:17]} 12. Rfd1 {[%emt 0:00:06] [#]} Qc8 $146 {[%emt 0:00:16]} ({Predecessor:} 12... Qe7 13. b3 h6 14. h3 c6 15. e4 e5 16. Be3 exd4 17. Nxd4 g6 18. Re1 Bg7 {½-½ (43) Sachdev,T (2399)-Pranav,V (2512) Novi Sad 2022}) 13. Bh3 {[%emt 0:00:07]} Qb8 {[%emt 0:01:36]} (13... h6 $5 {[%cal Rg7g5]}) 14. Rac1 {[%emt 0:01:38]} e5 {[%emt 0:01:09]} 15. Be3 {[%emt 0:00:57]} (15. Bxd7 Nxd7 16. dxe5 (16. Ng5 Nf6 $11) 16... Nxe5 $11) (15. dxe5 $16 Nxe5 16. Nxe5 dxe5 17. Bg5) 15... exd4 $11 {[%emt 0:00:37]} 16. Nxd4 {[%emt 0:00:50][%cal Oc3d5]} Ne5 {[%emt 0:00:20]} 17. Bg5 {[%emt 0:00:19] aiming for Bxf6.} Be7 {[%emt 0:01:33]} (17... Nfg4 $14) 18. Nf5 {[%emt 0:00:10]} (18. Bxf6 $16 Bxf6 19. Nd5) 18... Bd8 $14 {[%emt 0:00:13]} 19. b3 {[%emt 0:00:13]} (19. Nd5 {is more complex.} Neg4 20. Bf4 Ba6 21. Nd4) 19... Bc6 {[%emt 0:01:25]} (19... h5 $14) 20. Bxf6 {[%emt 0:00:46]} (20. Nd5 {feels hotter.} Neg4 21. Qb2 Re5 22. Bxg4 Bxd5 23. Bxf6 Bxf6 24. Nh6+) 20... Bxf6 {[%emt 0:00:07]} 21. Nd5 {[%emt 0:00:01]} Qd8 {[%emt 0:01:07]} 22. Bg2 {[%emt 0:00:08]} Rb8 {[%emt 0:00:26]} 23. Nd4 {[%emt 0:01:02] White is much more active. Pair of Knights!} ({But not} 23. f4 Bxd5 24. cxd5 (24. Bxd5 Ng4 $11) (24. Rxd5 Nc6 $14) (24. fxe5 Bxg2 25. Kxg2 Rxe5 $17) 24... Ng4 $11) 23... Bb7 {[%emt 0:00:09]} (23... Bd7 $142) 24. b4 {[%emt 0:00:22]} ({White should try} 24. Nb5) 24... axb4 $16 {[%emt 0:00:12]} 25. axb4 {[%emt 0:00:01]} g6 {[%emt 0:00:07]} 26. h3 {[%emt 0:00:13]} Bg7 {[%emt 0:00:01]} 27. Qd2 {[%emt 0:01:04]} Qd7 {[%emt 0:00:07]} 28. Kh2 {[%emt 0:00:09]} Qd8 {[%emt 0:00:10]} (28... c5 $5 {[%cal Rc5d4]} 29. Nf3 Nxf3+ 30. Bxf3 Bxd5 31. Bxd5 cxb4 $11) 29. Rc2 {[%emt 0:00:34]} Kh8 {[%emt 0:00:00] [#]} ({Better is} 29... h5 $14) 30. Qf4 {[%emt 0:00:08]} (30. f4 $1 $16 {[%cal Rf4e5]}) 30... Kg8 $14 {[%emt 0:00:10]} 31. Qc1 {[%emt 0:00:25]} Nd7 {[%emt 0:00:04]} 32. e3 {[%emt 0:00:13]} Ne5 {[%emt 0:00:05]} 33. Ra2 {[%emt 0:00:06]} Qc8 {[%emt 0:00:04]} (33... c6 $14 34. Nf4 Ra8) 34. c5 $2 {[%emt 0:00:09]} (34. f4 $16) 34... bxc5 {[%emt 0:00:05]} 35. bxc5 {[%emt 0:00:05] Strongly threatening c6.} Ra8 $2 {[%mdl 8192] Inhibits c6.} (35... Bxd5 $11 {and Black is okay.} 36. Bxd5 c6) 36. Rxa8 $18 Bxa8 {[%emt 0:00:08] [#]} 37. cxd6 $2 {[%emt 0:00:44]} (37. c6 $1 $18 {is the precise move to win.}) 37... Bxd5 $16 {[%emt 0:00:08]} 38. Bxd5 cxd6 39. Qa3 {[%emt 0:00:10]} Qc5 {[%emt 0:00:09]} 40. Qb3 {[%emt 0:00:05] Threatens to win with f4.} Kh8 {[%emt 0:00:13]} (40... Rc8 $16) 41. Rd2 {[%emt 0:00:00]} ({Don't do} 41. f4 Nd7 $16) (41. Bxf7 $18 Nxf7 42. Qxf7) 41... Qc7 {[%emt 0:00:00] Weighted Error Value: White=0.36/Black=0.30} 1-0

[Event "Romanian Rapid Open 2022"]
[Site "Sebes"]
[Date "2022.12.02"]
[Round "2.18"]
[White "Talu, Mircea"]
[Black "Jiros, Doru"]
[Result "1-0"]
[ECO "D61"]
[WhiteElo "2327"]
[BlackElo "1936"]
[Annotator "TA"]
[PlyCount "43"]
[EventDate "2022.12.02"]
[EventType "rapid"]
[EventCountry "ROU"]
[SourceTitle "playchess.com"]
[Source "ChessBase"]
[SourceQuality "1"]
[TimeControl "600+5"]

{[%evp 20,43,17,11,16,14,68,56,84,81,82,128,120,78,260,250,253,251,314,328,303,314,356,347,387,384]} 1. d4 {[%emt 0:00:03]} d5 {[%emt 0:00:01]} 2. c4 {[%emt 0:10:12]} c6 {[%emt 0:00:02]} 3. Nf3 {[%emt 0:00:00]} Nf6 {[%emt 0:00:01]} 4. Nc3 {[%emt 0:00:00]} e6 {[%emt 0:00:04]} 5. Bg5 {[%emt 0:00:00]} h6 {[%emt 0:00:19]} 6. Bh4 {[%emt 0:00:00]} Nbd7 {[%emt 0:00:15]} 7. e3 {[%emt 0:00:00]} Be7 {[%emt 0:00:15]} 8. Qc2 {[%emt 0:00:00]} O-O {[%emt 0:00:13]} 9. Rd1 {[%emt 0:00:00]} b6 {[%emt 0:00:19]} 10. Bd3 {[%emt 0:00:00]} Bb7 {[%emt 0:00:24]} 11. O-O {[%emt 0:00:00]} Rc8 {[%emt 0:00:31] D61: Queen's Gambit Declined: Classical: 7 Qc2.} 12. cxd5 {[%emt 0:00:00]} exd5 {[%emt 0:08:41]} (12... Nxd5 $11 13. Bxe7 Qxe7) 13. Bf5 $14 {[%emt 0:00:55]} Re8 {[%emt 0:00:00] White is slightly better.} 14. Ne5 {[%emt 0:00:00] [#] White is much more active.} Nxe5 $146 {[%emt 0:00:00]} ({Predecessor:} 14... c5 15. f4 cxd4 16. exd4 Rc7 17. Kh1 Nxe5 18. fxe5 Ne4 19. Be1 Bh4 20. g3 Bg5 {1-0 (44) Nguyen,T (2285)-Abdrlauf,E (2362) Chess.com INT 2020}) 15. dxe5 {[%emt 0:00:00]} Nd7 {[%emt 0:00:00]} 16. e6 {[%emt 0:00:00]} Nc5 {[%emt 0:00:00] [#] This move loses the game for Black.} (16... fxe6 $16 17. Bxe6+ Kh8) 17. exf7+ $18 {[%emt 0:00:00]} Kxf7 {[%emt 0:00:00]} 18. Bxe7 {[%emt 0:00:00]} Qxe7 {[%emt 0:00:00]} 19. Bxc8 {[%emt 0:00:00]} ({Less strong is} 19. Bh7 Qf6 $14) 19... Bxc8 {[%emt 0:00:00]} 20. b4 {[%emt 0:00:02][%cal Bb2b4,Bb4b5,Bb5c6][%mdl 32] Prevents a5.} Ne6 {[%emt 0:00:00]} 21. b5 {[%emt 0:00:04]} Kg8 {[%emt 0:00:00]} 22. bxc6 {[%emt 0:00:39] Weighted Error Value: White=0.06 (flawless) /Black=0.53} 1-0

[Event "Romanian Rapid Open 2022"]
[Site "Sebes"]
[Date "2022.12.02"]
[Round "2.19"]
[White "Bucur, Denisa-Andreea"]
[Black "Manea, Alexandru"]
[Result "0-1"]
[ECO "D10"]
[WhiteElo "1953"]
[BlackElo "2339"]
[Annotator "TA"]
[PlyCount "74"]
[EventDate "2022.12.02"]
[EventType "rapid"]
[EventCountry "ROU"]
[SourceTitle "playchess.com"]
[Source "ChessBase"]
[SourceQuality "1"]
[TimeControl "600+5"]

{[%evp 9,74,-8,27,25,37,9,42,20,31,21,31,30,20,27,27,27,28,29,49,-11,-10,-21,-21,-19,-13,-20,-16,-33,-18,-62,-17,-33,-21,-65,-23,-57,-53,-67,-72,-71,-50,-76,-75,-119,0,0,0,0,0,0,0,0,0,0,0,0,0,-19,0,-381,-376,-430,-421,-857,-832,-783,-768]} 1. d4 {[%emt 0:10:10]} d5 {[%emt 0:10:10]} 2. c4 {[%emt 0:00:05]} c6 {[%emt 0:00:05]} 3. Nc3 {[%emt 0:00:05]} Nf6 {[%emt 0:00:05]} 4. e3 {[%emt 0:00:05]} a6 {[%emt 0:00:05]} 5. c5 {[%emt 0:00:05]} Bf5 {[%emt 0:00:05]} 6. Nf3 {[%emt 0:00:05] D10: Slav Defence: 3 cxd5 (without early Nf3) and 3 Nc3.} Nbd7 {[%emt 0:00:05][%cal Oe7e5] 6...h6 is vanishing.} 7. Be2 {[%emt 0:00:05]} Qc7 {[%emt 0:00:05] [#]} 8. b4 $146 {[%emt 0:00:05] White is slightly better.} (8. Nh4 $5 {[%cal Rh4f5]} Bg6 9. O-O $14) ({Predecessor:} 8. Nh4 Be6 9. f4 g6 10. Bd2 Bg7 11. O-O Ne4 12. Be1 Nxc3 13. Bxc3 Nf6 14. b4 {½-½ (37) Tomazini,A (2283)-Plischki,S (2433) Pardubice 2014}) 8... e5 {[%emt 0:00:05]} 9. a4 {[%emt 0:00:05]} Ne4 {[%emt 0:00:05]} 10. Bb2 {[%emt 0:00:05]} Nxc3 {[%emt 0:00:05]} 11. Bxc3 {[%emt 0:00:05][%cal Rf3e5]} e4 {[%emt 0:00:05]} 12. Nd2 {[%emt 0:00:05]} Be7 {[%emt 0:00:05]} 13. b5 {[%emt 0:00:05]} h5 {[%emt 0:00:05]} 14. b6 {[%emt 0:00:05]} ({But not} 14. Bxh5 Bf6 $11) (14. Nb3 $14) 14... Qb8 $1 $11 {[%emt 0:00:05]} 15. Qb3 {[%emt 0:00:05]} h4 {[%emt 0:00:05]} 16. h3 {[%emt 0:00:05]} Be6 {[%emt 0:00:05]} 17. Qb2 {[%emt 0:00:05]} f5 {[%emt 0:00:05]} 18. O-O-O {[%emt 0:00:05]} Nf6 {[%emt 0:00:05]} 19. f4 {[%emt 0:00:05]} Qc8 {[%emt 0:00:05]} 20. Nf1 {[%emt 0:00:05]} Qd7 {[%emt 0:00:05]} 21. Nh2 {[%emt 0:00:05]} Kf7 {[%emt 0:00:05]} 22. Rhg1 {[%emt 0:00:05]} Rag8 {[%emt 0:00:05]} 23. g4 {[%emt 0:00:05]} hxg3 {[%emt 0:00:05]} 24. Rxg3 Nh5 {[%emt 0:00:05]} 25. Bxh5+ {[%emt 0:00:10]} Rxh5 {[%emt 0:00:05]} 26. Rdg1 {[%emt 0:00:05]} g5 {[%emt 0:00:05]} (26... Bh4 $17 27. Rg6 Bf6) 27. Qe2 {[%emt 0:00:05]} Rgh8 {[%emt 0:00:05]} 28. fxg5 {[%emt 0:00:05]} Rxh3 29. Nf1 {[%emt 0:00:05]} Qd8 {[%emt 0:00:10]} 30. g6+ {[%emt 0:00:05]} Kg7 {[%emt 0:00:05]} 31. Be1 {[%emt 0:00:05]} R3h6 {[%emt 0:00:05]} 32. R3g2 {[%emt 0:00:05]} Bh4 {[%emt 0:00:05]} 33. Ng3 {[%emt 0:00:05]} Qf6 {[%emt 0:00:05] aiming for ...f4.} (33... Rxg6 $2 34. Nh5+ Kf8 35. Rxg6 $18) 34. Nf1 $2 {[%emt 0:00:05][%mdl 8192]} (34. Rf1 $11 {and White is okay.}) 34... f4 $19 {[%emt 0:00:05] [#] And now ...f3 would win. Dancing on a razor blade.} 35. exf4 {[%emt 0:00:05][%cal Of4f5]} Qxd4 {[%emt 0:00:05] Black is clearly winning.} 36. Qb2 {[%emt 0:00:05] Prevents ?nota?.} (36. Bxh4 $142 Rxh4 37. Qb2 Qxb2+ 38. Kxb2) 36... Qxb2+ {[%emt 0:00:05]} 37. Kxb2 {[%emt 0:00:05]} Bxe1 {Weighted Error Value: White=0.46/Black=0.14 (very precise)} 0-1

[Event "Romanian Rapid Open 2022"]
[Site "Sebes"]
[Date "2022.12.02"]
[Round "2.20"]
[White "Itkis, Boris"]
[Black "Borodi, Cosmin-Alin"]
[Result "1-0"]
[ECO "E11"]
[WhiteElo "2343"]
[BlackElo "1919"]
[Annotator "TA"]
[PlyCount "49"]
[EventDate "2022.12.02"]
[EventType "rapid"]
[EventCountry "ROU"]
[SourceTitle "playchess.com"]
[Source "ChessBase"]
[SourceQuality "1"]
[TimeControl "600+5"]

{[%evp 9,49,12,11,10,85,83,93,75,87,90,87,84,116,108,132,104,1315,1362,1348,1362,1347,1327,1352,1322,1276,1216,1416,1414,1443,1437,1729,1696,2108,1631,2016,1495,29990,29991,29995,29989,29995,29996]} 1. d4 {[%emt 0:00:04]} e6 {[%emt 0:00:11]} 2. Nf3 {[%emt 0:00:02]} Nf6 {[%emt 0:00:10]} 3. c4 {[%emt 0:00:01]} Bb4+ {[%emt 0:00:09]} 4. Bd2 {[%emt 0:00:02]} Bxd2+ {[%emt 0:00:06]} 5. Qxd2 {[%emt 0:00:00]} O-O {[%emt 0:00:13]} 6. Nc3 {[%emt 0:00:02] E11: Bogo-Indian.} c6 {[%emt 0:00:09]} (6... d5 $11) 7. e4 $16 {[%emt 0:00:15][%cal Be2e4,Be4e5][%mdl 32]} d5 {[%emt 0:00:47] [#]} 8. e5 {[%emt 0:00:11] White is better.} Ne8 {[%emt 0:00:07]} 9. Bd3 {[%emt 0:00:27] [#]} dxc4 $146 {[%emt 0:00:36]} ({Predecessor:} 9... h6 10. b3 b6 11. Bc2 Bb7 12. O-O Na6 13. a3 c5 14. cxd5 cxd4 15. Nxd4 exd5 {1-0 (27) Jenneborg,S (1995)-Caviglia,M (1596) LSS email 2014}) 10. Bxc4 {[%emt 0:00:01]} Nd7 {[%emt 0:00:22]} 11. Bd3 {[%emt 0:00:08]} c5 {[%emt 0:00:31]} 12. dxc5 {[%emt 0:00:18] White is much more active.} Nxc5 $2 {[%emt 0:00:06][%mdl 8192] [#]} (12... Qe7 $16) 13. Bxh7+ $1 $18 {[%emt 0:00:03][%mdl 512]} Kxh7 {[%emt 0:00:13]} 14. Qxd8 {[%emt 0:00:01] Intending Qh4+ and mate.} Kg8 {[%emt 0:01:53]} 15. O-O {[%emt 0:00:11]} b6 {[%emt 0:00:31]} 16. Qh4 {[%emt 0:00:04] White threatens Ng5 and mate.} f6 {[%emt 0:00:16] Prevents Ng5.} 17. Rfe1 {[%emt 0:00:22]} a5 {[%emt 0:00:24]} 18. Rad1 {[%emt 0:00:05][%cal Ba1d1,Bd1d6,Bd6f6][%mdl 32]} Bb7 {[%emt 0:00:06]} 19. exf6 {[%emt 0:00:12]} Nxf6 {[%emt 0:00:06]} 20. Ng5 {[%emt 0:00:07]} Rfe8 {[%emt 0:00:24]} 21. Rd6 {[%emt 0:00:13]} Bd5 {[%emt 0:00:25]} 22. h3 {[%emt 0:00:18] White wants to mate with Nxd5.} Rab8 {[%emt 0:00:12]} 23. Nxd5 {[%emt 0:00:03] White mates.} exd5 {[%emt 0:00:13]} 24. Rxe8+ {[%emt 0:00:05]} Rxe8 {[%emt 0:00:08] [#]} 25. Rxf6 $1 {[%emt 0:00:03] Black did not feel at home in the position after the opening.   Weighted Error Value: White=0.07 (flawless) /Black=0.31} 1-0

[Event "Romanian Rapid Open 2022"]
[Site "Sebes"]
[Date "2022.12.02"]
[Round "2.21"]
[White "Arion, Ilie"]
[Black "Ciorgovean, Iustin"]
[Result "0-1"]
[ECO "D00"]
[WhiteElo "1924"]
[BlackElo "2319"]
[Annotator "TA"]
[PlyCount "82"]
[EventDate "2022.12.02"]
[EventType "rapid"]
[EventCountry "ROU"]
[SourceTitle "playchess.com"]
[Source "ChessBase"]
[SourceQuality "1"]
[TimeControl "600+5"]

{[%evp 9,82,-1,0,-21,-17,-22,-19,-17,-12,-29,-34,-45,-34,-62,-54,-68,-36,-49,-44,-62,-33,-52,-41,-93,-78,-87,-69,-84,-53,-94,-76,-128,-92,-125,-125,-125,-135,-131,-110,-602,-605,-590,-598,-582,-556,-612,-600,-621,-590,-605,-595,-597,-472,-722,-379,-515,-264,-256,-255,-244,-258,-515,-518,-522,-510,-510,-509,-558,-489,-624,-540,-535,-521,-523,-207]} 1. d4 {[%emt 0:00:01]} Nf6 {[%emt 0:00:01]} 2. Nc3 {[%emt 0:00:03]} d5 {[%emt 0:00:03]} 3. Bf4 {[%emt 0:00:04]} a6 {[%emt 0:00:04]} 4. e3 {[%emt 0:00:04]} e6 {[%emt 0:00:03]} 5. Nf3 {[%emt 0:00:02]} b5 {[%emt 0:00:04]} 6. a3 {[%emt 0:00:02] D00: 1 d4 d5: Unusual lines.} c5 {[%emt 0:00:07]} 7. dxc5 {[%emt 0:00:30]} Bxc5 {[%emt 0:00:03]} 8. Bd3 {[%emt 0:00:02] The position is equal.} Bb7 {[%emt 0:00:03]} 9. O-O {[%emt 0:00:16]} Nbd7 {[%emt 0:00:04]} 10. Ne5 {[%emt 0:00:22]} O-O {[%emt 0:00:46] [#]} 11. h3 $146 {[%emt 0:01:44]} ({Predecessor:} 11. Ne2 Rc8 12. c3 Bd6 13. Nxd7 Qxd7 14. Bg3 e5 15. Bc2 Rfe8 16. Bh4 Be7 17. Ng3 {1-0 (30) Bettalli,F (2304)-Radovanovic,M (2438) Chess.com INT 2022}) 11... Rc8 {[%emt 0:00:38]} 12. Ne2 {[%emt 0:00:04]} Nxe5 {[%emt 0:00:38]} 13. Bxe5 {[%emt 0:00:02]} Nd7 {[%emt 0:00:06][%cal Bf6d7,Bd7b6,Bb6c4][%mdl 32]} 14. Bh2 {[%emt 0:00:42]} Qf6 {[%emt 0:01:41]} 15. c3 {[%emt 0:00:35]} Nb6 {[%emt 0:01:22]} 16. Ng3 {[%emt 0:00:14]} (16. Qc2 $15) 16... g6 {[%emt 0:00:06]} 17. Qg4 {[%emt 0:00:23]} Qg7 {[%emt 0:00:26]} 18. Rfe1 {[%emt 0:00:42]} Nc4 {[%emt 0:00:28]} 19. Bxc4 {[%emt 0:00:04]} dxc4 {[%emt 0:00:08]} 20. e4 {[%emt 0:00:05]} ({Better is} 20. a4) 20... Rfd8 {[%emt 0:00:50]} 21. e5 {[%emt 0:00:11]} Rd2 {[%emt 0:00:14][%csl LRb2,LRf2]} 22. Re2 {[%emt 0:00:22]} Rcd8 $36 {[%emt 0:00:20][%mdl 2048] Black has strong initiative.} 23. Rae1 {[%emt 0:00:10]} Qh6 {[%emt 0:00:54] Black is much more active.} 24. Ne4 $2 {[%emt 0:00:06][%mdl 8192] This move loses the game for White.} (24. Nf1 $17 Rxe2 25. Qxe2) 24... Rxe2 $19 {[%emt 0:00:09]} 25. Qxe2 {[%emt 0:00:07]} Bxe4 {[%emt 0:00:20]} 26. Qxe4 {[%emt 0:00:02]} Qd2 {[%emt 0:00:08][%csl LRb2,LRf2]} 27. Bg3 {[%emt 0:00:59]} Qxb2 {[%emt 0:00:19]} 28. Bh4 {[%emt 0:00:02]} Rd5 {[%emt 0:00:21]} 29. Qf3 {[%emt 0:00:30]} Qd2 {[%emt 0:00:22] Prevents Rd1.} 30. Rf1 {[%emt 0:00:09]} Qd3 {[%emt 0:00:09]} 31. Qf6 {[%emt 0:00:11]} (31. Ra1 $142 Qxf3 32. gxf3) 31... Qf5 {[%emt 0:00:10]} 32. a4 {[%emt 0:00:29]} Qxe5 {[%emt 0:00:33]} 33. axb5 {[%emt 0:00:18]} axb5 {[%emt 0:00:28] [#] And now ...Bd6 would win.} 34. Ra1 {[%emt 0:00:03]} Qb8 {[%emt 0:00:31] Inhibits Ra8.} 35. Bg5 $2 {[%emt 0:00:22]} (35. Bg3 {was necessary.} Bd6 36. Bxd6 Rxd6 37. Kf1) 35... Rf5 {[%emt 0:00:05] Black is clearly winning.} 36. Qd8+ {[%emt 0:01:01]} Qxd8 {[%emt 0:00:01]} 37. Bxd8 {[%emt 0:00:02]} Rxf2 {[%emt 0:00:02] [#] Strongly threatening ...Ra2+.} 38. Kh1 {[%emt 0:00:06]} Kg7 {[%emt 0:00:09]} 39. Rb1 {[%emt 0:00:01]} Bd6 {[%emt 0:00:07][%cal Ob5b4] aiming for ...b4!} 40. Bb6 {[%emt 0:00:06]} Rf5 {[%emt 0:00:02]} 41. Bd4+ {[%emt 0:00:04]} Be5 $2 {[%emt 0:00:02] Weighted Error Value: White=0.57/Black=0.42} (41... e5 42. Bb6 e4) 0-1